[Event "Snabb-SM för veteraner, 65+ 2019"]
[Site "Schackcentrum, Vegagatan 20, Gothenburg, Sweden"]
[Date "2019.10.05"]
[Round "1.5"]
[White "Przysuski, Feliks"]
[Black "Degerfeldt, Sven"]
[Result "0-1"]
[TimeControl "15 minutes + 10 seconds per move from move one"]
[WhiteFideId "1712489"]
[BlackFideId "1717430"]
[WhiteElo "2008"]
[BlackElo "1822"]

1. e4 {[%clk 00:15:16]} {[%emt 00:00:02]} c5 {[%clk 00:15:19]} {[%emt
00:00:01]} 2. Nf3 {[%clk 00:15:24]} {[%emt 00:00:02]} d6 {[%clk 00:15:28]}
{[%emt 00:00:02]} 3. d4 {[%clk 00:15:33]} {[%emt 00:00:02]} cxd4 {[%clk
00:15:37]} 4. Nxd4 {[%emt 00:00:02]} Nf6 {[%emt 00:00:01]} 5. Nc3 {[%clk
00:15:36]} {[%emt 00:00:04]} a6 {[%clk 00:15:45]} {[%emt 00:00:02]} 6. Be2
{[%clk 00:15:42]} {[%emt 00:00:03]} e6 {[%clk 00:14:59]} {[%emt 00:00:57]} 7.
Be3 {[%clk 00:15:48]} {[%emt 00:00:03]} Qc7 {[%clk 00:15:00]} {[%emt 00:00:10]}
8. O-O {[%clk 00:15:53]} {[%emt 00:00:05]} b5 {[%clk 00:15:06]} {[%emt
00:00:04]} 9. a3 {[%clk 00:15:42]} {[%emt 00:00:20]} Bb7 {[%clk 00:15:14]}
{[%emt 00:00:02]} 10. f3 {[%clk 00:15:13]} {[%emt 00:00:38]} Be7 {[%clk
00:15:23]} {[%emt 00:00:02]} 11. Qd2 {[%clk 00:15:17]} {[%emt 00:00:06]} Nbd7
{[%clk 00:15:27]} {[%emt 00:00:06]} 12. Kh1 {[%clk 00:15:25]} {[%emt 00:00:02]}
O-O {[%clk 00:15:34]} {[%emt 00:00:04]} 13. Bd3 {[%clk 00:14:44]} {[%emt
00:00:50]} Rac8 {[%clk 00:15:29]} {[%emt 00:00:14]} 14. Rae1 {[%clk 00:14:46]}
{[%emt 00:00:08]} Nb6 {[%clk 00:15:27]} {[%emt 00:00:12]} 15. Nde2 {[%clk
00:13:12]} {[%emt 00:01:43]} Nc4 {[%clk 00:15:23]} {[%emt 00:00:15]} 16. Bxc4
{[%clk 00:13:20]} {[%emt 00:00:02]} Qxc4 {[%clk 00:15:22]} {[%emt 00:00:11]} 17.
Rd1 {[%clk 00:13:01]} {[%emt 00:00:29]} Rfd8 {[%clk 00:15:27]} {[%emt
00:00:04]} 18. Qd4 {[%clk 00:13:00]} {[%emt 00:00:10]} Qxd4 {[%clk 00:15:02]}
{[%emt 00:00:36]} 19. Nxd4 {[%clk 00:13:04]} {[%emt 00:00:05]} d5 {[%clk
00:14:50]} {[%emt 00:00:23]} 20. exd5 {[%emt 00:00:11]} Nxd5 {[%emt 00:00:02]}
21. Nxd5 {[%clk 00:12:58]} {[%emt 00:00:02]} Bxd5 {[%clk 00:14:42]} {[%emt
00:00:19]} 22. c3 {[%clk 00:13:00]} {[%emt 00:00:08]} Bc4 {[%clk 00:14:12]}
{[%emt 00:00:39]} 23. Rf2 {[%clk 00:13:06]} {[%emt 00:00:04]} e5 {[%clk
00:13:58]} {[%emt 00:00:25]} 0-1

[Event "Snabb-SM för veteraner, 65+ 2019"]
[Site "Schackcentrum, Vegagatan 20, Gothenburg, Sweden"]
[Date "2019.10.05"]
[Round "1.6"]
[White "Wahlstedt, Mats"]
[Black "Fransson, Lennart"]
[Result "0-1"]
[TimeControl "15 minutes + 10 seconds per move from move one"]
[WhiteFideId "1712250"]
[BlackFideId "1706756"]
[WhiteElo "1821"]
[BlackElo "1983"]

1. e4 {[%clk 00:15:16]} {[%emt 00:00:02]} c6 {[%clk 00:15:16]} {[%emt
00:00:05]} 2. Nf3 {[%clk 00:15:21]} {[%emt 00:00:06]} d5 {[%clk 00:15:22]}
{[%emt 00:00:04]} 3. exd5 {[%clk 00:15:29]} {[%emt 00:00:03]} cxd5 {[%clk
00:15:30]} {[%emt 00:00:01]} 4. Ne5 {[%emt 00:00:04]} a6 {[%clk 00:15:25]}
{[%emt 00:00:12]} 5. d4 {[%clk 00:15:43]} {[%emt 00:00:04]} Nf6 {[%clk
00:15:11]} {[%emt 00:00:25]} 6. Bd3 {[%clk 00:15:46]} {[%emt 00:00:07]} g6
{[%clk 00:14:34]} {[%emt 00:00:47]} 7. O-O {[%clk 00:15:46]} {[%emt 00:00:10]}
Bg7 {[%clk 00:14:42]} {[%emt 00:00:01]} 8. Re1 {[%clk 00:15:29]} {[%emt
00:00:27]} O-O {[%clk 00:14:49]} {[%emt 00:00:03]} 9. Nd2 {[%clk 00:14:51]}
{[%emt 00:00:47]} Nc6 {[%clk 00:14:31]} {[%emt 00:00:28]} 10. c3 {[%clk
00:13:54]} {[%emt 00:01:08]} Nxe5 {[%clk 00:13:37]} {[%emt 00:01:04]} 11. dxe5
{[%clk 00:14:00]} {[%emt 00:00:04]} Ng4 {[%clk 00:12:54]} {[%emt 00:00:53]} 12.
Nf3 {[%clk 00:13:59]} {[%emt 00:00:11]} f6 {[%clk 00:11:00]} {[%emt 00:02:04]}
13. e6 {[%clk 00:13:04]} {[%emt 00:01:05]} Qd6 {[%clk 00:09:09]} {[%emt
00:02:00]} 14. h3 {[%clk 00:12:48]} {[%emt 00:00:26]} Ne5 {[%clk 00:09:06]}
{[%emt 00:00:13]} 15. Nd4 {[%clk 00:12:12]} {[%emt 00:00:46]} Nc6 {[%clk
00:07:01]} {[%emt 00:02:15]} 16. Qe2 {[%clk 00:11:38]} {[%emt 00:00:45]} Nxd4
{[%clk 00:06:57]} {[%emt 00:00:13]} 17. cxd4 {[%clk 00:11:47]} {[%emt
00:00:02]} f5 {[%clk 00:06:51]} {[%emt 00:00:15]} 18. Qe3 {[%clk 00:11:35]}
{[%emt 00:00:21]} f4 {[%clk 00:06:54]} {[%emt 00:00:07]} 19. Qd2 {[%clk
00:10:25]} {[%emt 00:01:21]} Bxe6 {[%clk 00:06:38]} {[%emt 00:00:26]} 20. Qe2
{[%clk 00:10:10]} {[%emt 00:00:26]} Rf6 {[%clk 00:04:21]} {[%emt 00:02:26]} 21.
Qe5 {[%clk 00:09:15]} {[%emt 00:01:05]} Qxe5 {[%clk 00:03:46]} {[%emt
00:00:45]} 22. dxe5 {[%clk 00:09:23]} {[%emt 00:00:02]} Rff8 {[%clk 00:03:49]}
{[%emt 00:00:06]} 23. Bd2 {[%clk 00:09:27]} {[%emt 00:00:06]} Rac8 {[%clk
00:03:43]} {[%emt 00:00:16]} 24. Rac1 {[%clk 00:08:05]} {[%emt 00:01:32]} Rxc1
{[%clk 00:03:49]} {[%emt 00:00:05]} 25. Bxc1 {[%clk 00:08:14]} {[%emt
00:00:02]} Bf5 {[%clk 00:03:33]} {[%emt 00:00:26]} 26. Bf1 {[%clk 00:07:56]}
{[%emt 00:00:27]} g5 {[%clk 00:03:29]} {[%emt 00:00:14]} 27. Bd2 {[%clk
00:07:48]} {[%emt 00:00:19]} Rc8 {[%clk 00:03:30]} {[%emt 00:00:09]} 28. Bc3
{[%clk 00:07:26]} {[%emt 00:00:31]} e6 {[%clk 00:03:33]} {[%emt 00:00:07]} 29.
Be2 {[%clk 00:06:48]} {[%emt 00:00:48]} Bf8 {[%clk 00:03:19]} {[%emt 00:00:23]}
30. Bd1 {[%clk 00:06:24]} {[%emt 00:00:35]} Bg6 {[%clk 00:03:04]} {[%emt
00:00:25]} 31. Bb3 {[%clk 00:06:15]} {[%emt 00:00:19]} Kf7 {[%clk 00:02:53]}
{[%emt 00:00:20]} 32. Rd1 {[%clk 00:06:10]} {[%emt 00:00:15]} b5 {[%clk
00:02:48]} {[%emt 00:00:16]} 33. a3 {[%clk 00:06:15]} {[%emt 00:00:06]} Ke8
{[%clk 00:02:49]} {[%emt 00:00:09]} 34. Kf1 {[%clk 00:06:17]} {[%emt 00:00:07]}
Kd7 {[%clk 00:02:57]} {[%emt 00:00:01]} 35. Ke1 {[%clk 00:06:25]} {[%emt
00:00:03]} Bc5 {[%clk 00:02:58]} {[%emt 00:00:09]} 36. Rd2 {[%clk 00:06:04]}
{[%emt 00:00:30]} Kc6 {[%clk 00:02:56]} {[%emt 00:00:12]} 37. Kd1 {[%clk
00:06:12]} {[%emt 00:00:01]} Kb6 {[%clk 00:03:04]} {[%emt 00:00:03]} 38. Bd4
{[%emt 00:00:10]} Bxd4 {[%clk 00:02:52]} {[%emt 00:00:19]} 39. Rxd4 {[%clk
00:06:22]} {[%emt 00:00:02]} Rf8 {[%clk 00:02:50]} {[%emt 00:00:12]} 40. Rd2
{[%clk 00:06:22]} {[%emt 00:00:11]} Rf5 {[%clk 00:02:53]} {[%emt 00:00:07]} 41.
Re2 {[%clk 00:06:28]} {[%emt 00:00:04]} f3 {[%clk 00:03:01]} {[%emt 00:00:01]}
42. gxf3 {[%clk 00:06:26]} {[%emt 00:00:13]} Rxf3 {[%clk 00:03:09]} {[%emt
00:00:01]} 43. Re3 {[%clk 00:06:35]} Rxf2 {[%clk 00:03:11]} {[%emt 00:00:09]}
44. Bxd5 {[%clk 00:05:58]} {[%emt 00:00:48]} exd5 {[%clk 00:03:18]} {[%emt
00:00:03]} 45. e6 {[%emt 00:00:02]} Rf4 {[%clk 00:03:22]} {[%emt 00:00:05]} 0-1

[Event "Snabb-SM för veteraner, 65+ 2019"]
[Site "Schackcentrum, Vegagatan 20, Gothenburg, Sweden"]
[Date "2019.10.05"]
[Round "1.7"]
[White "Olsson, Tomas"]
[Black "Olesen, Christer"]
[Result "0-1"]
[TimeControl "15 minutes + 10 seconds per move from move one"]
[WhiteFideId "1702696"]
[BlackFideId "1739069"]
[WhiteElo "1973"]
[BlackElo "1809"]

1. e4 {[%clk 00:15:16]} {[%emt 00:00:03]} c6 {[%clk 00:15:13]} {[%emt
00:00:08]} 2. Nf3 {[%clk 00:15:22]} {[%emt 00:00:04]} d5 {[%clk 00:15:21]}
{[%emt 00:00:02]} 3. exd5 {[%clk 00:15:28]} {[%emt 00:00:04]} cxd5 {[%clk
00:15:30]} 4. Ne5 {[%clk 00:15:36]} {[%emt 00:00:03]} Nf6 {[%clk 00:14:43]}
{[%emt 00:00:57]} 5. d4 {[%clk 00:15:39]} {[%emt 00:00:07]} Nc6 {[%clk
00:13:41]} {[%emt 00:01:13]} 6. Bb5 {[%clk 00:15:05]} {[%emt 00:00:44]} Qb6
{[%clk 00:12:17]} {[%emt 00:01:33]} 7. Nc3 {[%clk 00:14:38]} {[%emt 00:00:37]}
Bf5 {[%clk 00:11:41]} {[%emt 00:00:46]} 8. g4 {[%clk 00:13:48]} {[%emt
00:01:01]} Bd7 {[%clk 00:10:27]} {[%emt 00:01:24]} 9. Nxd7 {[%clk 00:12:53]}
{[%emt 00:01:06]} Nxd7 {[%clk 00:09:19]} {[%emt 00:01:18]} 10. Nxd5 {[%clk
00:11:59]} {[%emt 00:01:04]} Qd8 {[%clk 00:08:53]} {[%emt 00:00:36]} 11. Be3
{[%clk 00:11:22]} {[%emt 00:00:47]} e6 {[%clk 00:08:31]} {[%emt 00:00:33]} 12.
Nc3 {[%clk 00:11:23]} {[%emt 00:00:09]} Bd6 {[%clk 00:08:03]} {[%emt 00:00:37]}
13. Qd2 {[%clk 00:10:38]} {[%emt 00:00:55]} O-O {[%clk 00:07:42]} {[%emt
00:00:30]} 14. O-O-O {[%clk 00:10:33]} {[%emt 00:00:15]} a6 {[%clk 00:07:40]}
{[%emt 00:00:13]} 15. Bd3 {[%clk 00:09:47]} {[%emt 00:00:55]} Rc8 {[%clk
00:06:42]} {[%emt 00:01:08]} 16. Kb1 {[%clk 00:09:52]} {[%emt 00:00:05]} Bb4
{[%clk 00:06:19]} {[%emt 00:00:33]} 17. Qe1 {[%clk 00:09:23]} {[%emt 00:00:39]}
Na5 {[%clk 00:06:09]} {[%emt 00:00:21]} 18. Bd2 {[%clk 00:09:06]} {[%emt
00:00:27]} Nc4 {[%clk 00:06:03]} {[%emt 00:00:17]} 19. Bxc4 {[%clk 00:08:32]}
{[%emt 00:00:44]} Rxc4 {[%clk 00:06:11]} {[%emt 00:00:01]} 20. Ne4 {[%clk
00:06:27]} {[%emt 00:02:15]} Bxd2 {[%clk 00:05:40]} {[%emt 00:00:41]} 21. Qxd2
{[%clk 00:06:29]} {[%emt 00:00:09]} Nb6 {[%clk 00:05:45]} {[%emt 00:00:05]} 22.
g5 {[%clk 00:06:27]} {[%emt 00:00:12]} Qd5 {[%clk 00:05:10]} {[%emt 00:00:45]}
23. h4 {[%clk 00:06:29]} {[%emt 00:00:07]} Qxe4 {[%clk 00:05:02]} {[%emt
00:00:18]} 0-1

[Event "Snabb-SM för veteraner, 65+ 2019"]
[Site "Schackcentrum, Vegagatan 20, Gothenburg, Sweden"]
[Date "2019.10.05"]
[Round "1.8"]
[White "Nyberg, Bo"]
[Black "Landin, Bo"]
[Result "0-1"]
[TimeControl "15 minutes + 10 seconds per move from move one"]
[WhiteFideId "1710583"]
[BlackFideId "1705261"]
[WhiteElo "1806"]
[BlackElo "1959"]

1. d4 {[%clk 00:15:15]} {[%emt 00:00:04]} e6 {[%clk 00:15:15]} {[%emt
00:00:05]} 2. Bf4 {[%clk 00:15:12]} {[%emt 00:00:13]} d5 {[%clk 00:15:23]}
{[%emt 00:00:03]} 3. e3 {[%clk 00:15:19]} {[%emt 00:00:04]} Bd6 {[%clk
00:15:30]} {[%emt 00:00:03]} 4. Bg3 {[%clk 00:15:17]} {[%emt 00:00:11]} Nf6
{[%clk 00:15:31]} {[%emt 00:00:10]} 5. Nf3 {[%clk 00:15:19]} {[%emt 00:00:08]}
O-O {[%clk 00:15:20]} {[%emt 00:00:22]} 6. Nbd2 {[%clk 00:15:12]} {[%emt
00:00:17]} c6 {[%clk 00:14:27]} {[%emt 00:01:03]} 7. Bd3 {[%clk 00:15:06]}
{[%emt 00:00:15]} Qc7 {[%clk 00:14:26]} {[%emt 00:00:12]} 8. c3 {[%clk
00:14:53]} {[%emt 00:00:23]} Nbd7 {[%clk 00:14:31]} {[%emt 00:00:05]} 9. Bxd6
{[%clk 00:14:50]} {[%emt 00:00:13]} Qxd6 {[%clk 00:14:39]} {[%emt 00:00:03]} 10.
O-O {[%clk 00:14:47]} {[%emt 00:00:13]} e5 {[%clk 00:12:41]} {[%emt 00:02:08]}
11. e4 {[%clk 00:13:40]} {[%emt 00:01:16]} Re8 {[%clk 00:12:20]} {[%emt
00:00:31]} 12. dxe5 {[%clk 00:12:36]} {[%emt 00:01:13]} Nxe5 {[%clk 00:12:22]}
{[%emt 00:00:08]} 13. Nxe5 {[%clk 00:12:39]} {[%emt 00:00:07]} Qxe5 {[%clk
00:12:11]} {[%emt 00:00:22]} 14. f4 {[%clk 00:10:49]} {[%emt 00:01:59]} Qc7
{[%clk 00:11:45]} {[%emt 00:00:36]} 15. e5 {[%clk 00:10:51]} {[%emt 00:00:09]}
Ng4 {[%clk 00:08:34]} {[%emt 00:03:21]} 16. Qb3 {[%clk 00:05:47]} {[%emt
00:05:13]} Qb6+ {[%clk 00:05:18]} {[%emt 00:03:26]} 17. Qxb6 {[%clk 00:05:54]}
{[%emt 00:00:03]} axb6 {[%clk 00:05:27]} {[%emt 00:00:02]} 18. a3 {[%clk
00:05:12]} {[%emt 00:00:51]} c5 {[%clk 00:04:46]} {[%emt 00:00:51]} 19. Rae1
{[%clk 00:05:10]} {[%emt 00:00:11]} c4 {[%clk 00:04:36]} {[%emt 00:00:21]} 20.
Bc2 {[%clk 00:05:12]} {[%emt 00:00:07]} b5 {[%clk 00:04:26]} {[%emt 00:00:21]}
21. h3 {[%clk 00:05:10]} {[%emt 00:00:11]} Nh6 {[%clk 00:04:33]} {[%emt
00:00:03]} 22. Nf3 {[%clk 00:05:13]} {[%emt 00:00:07]} Bf5 {[%clk 00:04:22]}
{[%emt 00:00:21]} 23. Bxf5 {[%clk 00:04:56]} {[%emt 00:00:27]} Nxf5 {[%clk
00:04:30]} {[%emt 00:00:02]} 24. Nd4 {[%clk 00:04:56]} {[%emt 00:00:09]} Nxd4
{[%clk 00:04:27]} {[%emt 00:00:14]} 25. cxd4 {[%clk 00:05:05]} {[%emt
00:00:02]} Ra6 {[%clk 00:04:30]} {[%emt 00:00:07]} 26. Re3 {[%clk 00:04:56]}
{[%emt 00:00:18]} Rb6 {[%clk 00:04:36]} {[%emt 00:00:05]} 27. b3 {[%clk
00:02:54]} {[%emt 00:02:12]} Ra8 {[%clk 00:04:23]} {[%emt 00:00:23]} 28. bxc4
{[%clk 00:02:47]} {[%emt 00:00:16]} bxc4 {[%clk 00:04:32]} {[%emt 00:00:02]} 29.
f5 {[%clk 00:02:30]} {[%emt 00:00:26]} Raa6 {[%clk 00:04:08]} {[%emt 00:00:34]}
30. Kh2 {[%clk 00:02:31]} {[%emt 00:00:09]} Rb2 {[%clk 00:04:13]} {[%emt
00:00:06]} 31. e6 {[%clk 00:02:31]} {[%emt 00:00:10]} Kf8 {[%clk 00:04:20]}
{[%emt 00:00:03]} 32. e7+ {[%clk 00:02:29]} {[%emt 00:00:12]} Ke8 {[%clk
00:04:29]} {[%emt 00:00:01]} 33. Re5 {[%clk 00:02:33]} {[%emt 00:00:06]} Ra5
{[%clk 00:04:18]} {[%emt 00:00:21]} 34. Rc1 {[%clk 00:02:41]} {[%emt 00:00:02]}
Rbb5 {[%clk 00:04:14]} {[%emt 00:00:15]} 35. a4 {[%clk 00:02:44]} {[%emt
00:00:07]} Rxa4 {[%clk 00:04:14]} {[%emt 00:00:10]} 36. Rc2 {[%emt 00:00:08]}
0-1

[Event "Snabb-SM för veteraner, 65+ 2019"]
[Site "Schackcentrum, Vegagatan 20, Gothenburg, Sweden"]
[Date "2019.10.05"]
[Round "1.9"]
[White "Nordstrom, Per-Olov"]
[Black "Westerlind, Sture"]
[Result "1/2-1/2"]
[TimeControl "15 minutes + 10 seconds per move from move one"]
[WhiteFideId "1714317"]
[BlackFideId "1745654"]
[WhiteElo "1940"]
[BlackElo "1806"]

1. e4 {[%clk 00:15:16]} {[%emt 00:00:03]} d5 {[%clk 00:15:12]} {[%emt
00:00:09]} 2. exd5 {[%clk 00:15:23]} {[%emt 00:00:03]} Qxd5 {[%clk 00:15:20]}
{[%emt 00:00:02]} 3. Nc3 {[%clk 00:15:29]} {[%emt 00:00:05]} Qa5 {[%clk
00:15:28]} {[%emt 00:00:02]} 4. Bc4 {[%clk 00:15:24]} {[%emt 00:00:14]} Nf6
{[%clk 00:15:18]} {[%emt 00:00:19]} 5. Nge2 {[%clk 00:15:11]} {[%emt 00:00:24]}
Bf5 {[%clk 00:15:23]} {[%emt 00:00:04]} 6. d3 {[%clk 00:15:06]} {[%emt
00:00:15]} e6 {[%clk 00:15:21]} {[%emt 00:00:13]} 7. Bd2 {[%clk 00:15:07]}
{[%emt 00:00:09]} c6 {[%clk 00:15:29]} {[%emt 00:00:02]} 8. O-O {[%clk
00:13:57]} {[%emt 00:01:19]} Be7 {[%clk 00:15:27]} {[%emt 00:00:12]} 9. Ng3
{[%clk 00:13:18]} {[%emt 00:00:49]} Bg6 {[%clk 00:14:46]} {[%emt 00:00:52]} 10.
Re1 {[%clk 00:12:57]} {[%emt 00:00:31]} O-O {[%clk 00:14:41]} {[%emt 00:00:15]}
11. Nd5 {[%clk 00:12:43]} {[%emt 00:00:25]} Qd8 {[%clk 00:14:46]} {[%emt
00:00:05]} 12. Nxe7+ {[%clk 00:12:48]} {[%emt 00:00:05]} Qxe7 {[%clk 00:14:53]}
{[%emt 00:00:02]} 13. a3 {[%clk 00:12:18]} {[%emt 00:00:41]} Rd8 {[%clk
00:14:26]} {[%emt 00:00:36]} 14. Qf3 {[%clk 00:11:49]} {[%emt 00:00:40]} Qc7
{[%clk 00:12:38]} {[%emt 00:01:58]} 15. Bf4 {[%clk 00:11:32]} {[%emt 00:00:27]}
Qb6 {[%clk 00:12:31]} {[%emt 00:00:18]} 16. Bb3 {[%clk 00:11:15]} {[%emt
00:00:28]} Nbd7 {[%clk 00:12:07]} {[%emt 00:00:33]} 17. Be3 {[%clk 00:11:06]}
{[%emt 00:00:19]} Qc7 {[%clk 00:11:30]} {[%emt 00:00:47]} 18. Bd4 {[%clk
00:10:22]} {[%emt 00:00:54]} Rac8 {[%clk 00:06:58]} {[%emt 00:04:40]} 19. Qe2
{[%clk 00:09:52]} {[%emt 00:00:42]} Re8 {[%clk 00:06:27]} {[%emt 00:00:41]} 20.
Bc3 {[%clk 00:09:29]} {[%emt 00:00:33]} Qf4 {[%clk 00:05:57]} {[%emt 00:00:40]}
21. Qe3 {[%clk 00:08:47]} {[%emt 00:00:52]} Qxe3 {[%clk 00:06:00]} {[%emt
00:00:08]} 22. fxe3 {[%clk 00:08:28]} {[%emt 00:00:29]} b6 {[%clk 00:06:08]}
{[%emt 00:00:02]} 23. e4 {[%clk 00:08:13]} {[%emt 00:00:25]} Nc5 {[%clk
00:06:11]} {[%emt 00:00:07]} 24. Bc4 {[%clk 00:08:05]} {[%emt 00:00:17]} Nfd7
{[%clk 00:05:59]} {[%emt 00:00:22]} 25. d4 {[%clk 00:07:50]} {[%emt 00:00:25]}
Na4 {[%clk 00:06:04]} {[%emt 00:00:05]} 26. Bb3 {[%clk 00:06:34]} {[%emt
00:01:26]} Nxc3 {[%clk 00:05:58]} {[%emt 00:00:16]} 27. bxc3 {[%clk 00:06:42]}
{[%emt 00:00:02]} c5 {[%clk 00:06:02]} {[%emt 00:00:06]} 28. Ba4 {[%clk
00:06:30]} {[%emt 00:00:22]} Red8 {[%clk 00:06:05]} {[%emt 00:00:06]} 29. d5
{[%clk 00:06:07]} {[%emt 00:00:33]} exd5 {[%clk 00:06:06]} {[%emt 00:00:10]} 30.
exd5 {[%clk 00:06:12]} {[%emt 00:00:05]} Nf6 {[%clk 00:06:11]} {[%emt
00:00:04]} 31. c4 {[%clk 00:06:09]} {[%emt 00:00:14]} a6 {[%clk 00:06:17]}
{[%emt 00:00:04]} 32. Rad1 {[%clk 00:05:57]} {[%emt 00:00:21]} b5 {[%clk
00:06:02]} {[%emt 00:00:25]} 33. cxb5 {[%clk 00:05:49]} {[%emt 00:00:17]} axb5
{[%clk 00:06:12]} {[%emt 00:00:01]} 34. Bxb5 {[%clk 00:05:45]} {[%emt
00:00:14]} Bxc2 {[%clk 00:06:21]} {[%emt 00:00:01]} 35. Rd2 {[%clk 00:05:38]}
{[%emt 00:00:17]} Bb3 {[%clk 00:06:16]} {[%emt 00:00:15]} 36. d6 {[%clk
00:05:11]} {[%emt 00:00:37]} c4 {[%clk 00:06:16]} {[%emt 00:00:11]} 37. d7
{[%clk 00:04:26]} {[%emt 00:00:54]} Rb8 {[%clk 00:06:22]} {[%emt 00:00:04]} 38.
Rde2 {[%clk 00:03:56]} {[%emt 00:00:40]} Kf8 {[%clk 00:06:06]} {[%emt
00:00:26]} 39. Bc6 {[%clk 00:03:35]} {[%emt 00:00:30]} Nxd7 {[%clk 00:05:52]}
{[%emt 00:00:25]} 40. Nf5 {[%clk 00:03:25]} {[%emt 00:00:20]} Nf6 {[%clk
00:05:40]} {[%emt 00:00:22]} 41. a4 {[%clk 00:03:06]} {[%emt 00:00:29]} g6
{[%clk 00:05:43]} {[%emt 00:00:08]} 42. Nh6 {[%clk 00:02:56]} {[%emt 00:00:19]}
Kg7 {[%clk 00:05:43]} {[%emt 00:00:10]} 43. Nxf7 {[%clk 00:02:52]} {[%emt
00:00:14]} Kxf7 {[%clk 00:05:52]} {[%emt 00:00:01]} 44. Re7+ {[%clk 00:02:59]}
{[%emt 00:00:02]} Kf8 {[%clk 00:05:52]} {[%emt 00:00:10]} 45. R7e6 {[%clk
00:02:39]} {[%emt 00:00:31]} Nh5 {[%clk 00:05:30]} {[%emt 00:00:32]} 46. Rf1+
{[%clk 00:02:41]} {[%emt 00:00:08]} Kg7 {[%clk 00:05:30]} {[%emt 00:00:10]} 47.
Re7+ {[%clk 00:02:38]} {[%emt 00:00:13]} Kh6 {[%clk 00:05:39]} {[%emt
00:00:02]} 48. Rff7 {[%clk 00:02:33]} {[%emt 00:00:14]} Rd1+ {[%clk 00:05:48]}
49. Kf2 {[%clk 00:02:41]} {[%emt 00:00:02]} Rh8 {[%clk 00:05:48]} {[%emt
00:00:11]} 50. g4 {[%clk 00:02:45]} {[%emt 00:00:06]} Rd2+ {[%clk 00:05:53]}
{[%emt 00:00:06]} 51. Ke3 {[%clk 00:02:42]} {[%emt 00:00:13]} Rd3+ {[%clk
00:06:01]} {[%emt 00:00:02]} 52. Ke4 {[%clk 00:02:46]} {[%emt 00:00:06]} Ng3+
{[%clk 00:06:05]} {[%emt 00:00:05]} 53. hxg3 {[%clk 00:02:47]} {[%emt
00:00:09]} Rxg3 {[%clk 00:06:14]} {[%emt 00:00:01]} 54. Kf4 {[%clk 00:02:50]}
{[%emt 00:00:08]} Rg1 {[%clk 00:06:19]} {[%emt 00:00:05]} 55. Rxh7+ {[%clk
00:02:21]} {[%emt 00:00:38]} Rxh7 {[%clk 00:06:22]} {[%emt 00:00:07]} 56. g5+
{[%clk 00:02:25]} {[%emt 00:00:06]} Rxg5 {[%clk 00:06:31]} {[%emt 00:00:02]} 57.
Rxh7+ {[%clk 00:02:33]} {[%emt 00:00:02]} Kxh7 {[%clk 00:06:40]} 58. Kxg5
{[%clk 00:02:38]} {[%emt 00:00:06]} c3 {[%clk 00:06:41]} {[%emt 00:00:09]} 59.
Be4 {[%clk 00:02:43]} {[%emt 00:00:05]} c2 {[%clk 00:06:48]} {[%emt 00:00:03]}
60. Bxg6+ {[%clk 00:02:50]} {[%emt 00:00:02]} Kg7 {[%emt 00:00:07]} 1/2-1/2